Cogmind - Beta 13 @@@ ROGUE MODE // 2024.04.10 @ 16:38:26 Player: Baxter Result: Destroyed by G-34 Mercenary with Small Laser Performance ------------- Evolutions (0) 0 Regions Visited (1) 200 Robots Destroyed (36) 180 Value Destroyed (695) 695 Prototype IDs (0) 0 Alien Tech Used (0) 0 Bonus (0) 0 TOTAL SCORE: 1075 Bonus ------- None Cogmind --------- Core Integrity 0/250 Matter 258/300 Energy 100/100 System Corruption 1% Temperature Cool (6) Movement Rolling (200) Ox8 Location -10/Materials Parts ------- > --- POWER (1) -------- (None) > --- PROPULSION (2) --- Wheel > --- UTILITY (2) ------ Huge Storage Unit Seismic Detector > --- WEAPON (2) ------- Assault Rifle > --- INVENTORY (25) --- Ion Engine Light Ion Engine Light Treads Light Treads Wheel Wheel Wheel Compact Wheel Compact Wheel Compact Wheel Compact Wheel Compact Wheel Compact Wheel Medium Storage Unit Large Storage Unit Structural Scanner Improved Terrain Scanner Hacking Suite Small Laser Light Assault Rifle Hammer Peak State ------------ > --- POWER ------------ Ion Engine > --- PROPULSION ------- Wheel Wheel > --- UTILITY ---------- Huge Storage Unit Seismic Detector > --- WEAPON ----------- Medium Laser Assault Rifle > --- INVENTORY -------- Ion Engine Light Ion Engine Light Treads Light Treads Wheel Wheel Compact Wheel Compact Wheel Compact Wheel Compact Wheel Compact Wheel Compact Wheel Medium Storage Unit Large Storage Unit Structural Scanner Improved Terrain Scanner Small Laser Light Assault Rifle [Rating: 9] Favorites ----------- Power Ion Engine Engine Ion Engine Propulsion Wheel Treads Light Treads Wheel Wheel Utility Seismic Detector Device Seismic Detector Storage Huge Storage Unit Weapon Medium Laser Energy Gun Medium Laser Ballistic Gun Assault Rifle Build | -11 -10 ------- Run | Yrd Mat Slots Evolved . | . . Power . | . . Propulsion . | . . Utility . | . . Weapon . | . . Parts Attached 15 | 8 7 Power 3 | 1 2 Engine 3 | 1 2 Core . | . . Reactor . | . . Propulsion 4 | 2 2 Treads 1 | 1 . Leg . | . . Wheel 3 | 1 2 Hover . | . . Flight . | . . Utility 4 | 2 2 Device 1 | 1 . Storage 3 | 1 2 Processor . | . . Hackware . | . . Protection . | . . Artifact . | . . Weapon 4 | 3 1 Energy Gun 2 | 2 . Energy Cannon . | . . Ballistic Gun 2 | 1 1 Ballistic Cannon . | . . Launcher . | . . Special Weapon . | . . Impact Weapon . | . . Slashing Weapon . | . . Piercing Weapon . | . . Special Melee Weapon . | . . Unidentified Prototypes . | . . Parts Lost 5 | . 5 Power 2 | . 2 Propulsion 2 | . 2 Utility . | . . Weapon 1 | . 1 Highest Loss Streak 2 | . 2 To Critical Strikes . | . . Average Slot Usage (%) 95 | . 95 Engine 12 | . 12 Treads 6 | . 6 Wheel 19 | . 19 Device 14 | . 14 Storage 14 | . 14 Energy Gun 13 | . 13 Ballistic Gun 14 | . 14 Naked Turns . | . . Heaviest Build 90 | 12 90 Greatest Support 20 | 20 20 Greatest Overweight (x) 8 | . 8 Average Overweight (x) 3 | . 3 Largest Inventory Capacity 25 | 8 25 Average Capacity 19 | 7 20 Most Carried 21 | 6 21 Average Carried 12 | 4 13 Final Capacity 25 | 8 25 Final Carried 21 | 6 21 Class Distribution -------------------- 100% | Mutant Dominant Class ---------------- Mutant | -10/Materials Resources | -11 -10 ----------- Run | Yrd Mat Matter Collected 561 | 251 310 Remotely . | . . Salvage Created 1079 | 53 1026 Parts 70 | 7 63 Haulers Intercepted 2 | . 2 Recyclers Shooed 4 | . 4 Parts Field Recycled . | . . Retrieved Matter . | . . Parts Self-Destructed . | . . Prevented . | . . Kills | -11 -10 ------- Run | Yrd Mat Combat Hostiles Destroyed 16 | . 16 Guns 16 | . 16 Classes Destroyed 9 | 1 8 Worker 3 | . 3 Builder 4 | . 4 Tunneler 4 | 3 1 Hauler 2 | . 2 Recycler 2 | . 2 Operator 2 | . 2 Watcher 3 | . 3 Swarmer 3 | . 3 Grunt 13 | . 13 Best Kill Streak 5 | 1 5 Combat Bots Only 4 | . 4 Max Kills in Single Turn 4 | 1 4 Gunslinging . | . . Exploded . | . . Melee . | . . Uniques/NPCs Destroyed . | . . Combat | -11 -10 -------- Run | Yrd Mat Hostile Shots Fired 80 | . 80 Missed 28 | . 28 Damage Taken 735 | . 735 Core 254 | . 254 Absorbed by Shields . | . . Core Remaining (%) 100 | 100 . Volleys Fired 121 | 15 106 Largest 2 | 2 2 Hottest 70 | 70 70 Shots Fired 232 | 30 202 Gun 232 | 30 202 Cannon . | . . Launcher . | . . Special . | . . Kinetic 121 | 15 106 Thermal 111 | 15 96 Explosive . | . . Electromagnetic . | . . Robot Hit Streak 15 | 10 15 Robot Miss Streak 5 | 2 5 Penetration Max . | . . Secondary Targets 2 | . 2 Max Gunslinging Chain 1 | . 1 Shots Hit Robots 152 | 22 130 Core Hits 62 | 5 57 Critical Kills . | . . Critical Parts Destroyed . | . . Critical Strikes 13 | 2 11 Burn 13 | 2 11 Melee Attacks . | . . Impact . | . . Slashing . | . . Piercing . | . . Sneak Attacks . | . . Combat Hostiles . | . . Follow-up Attacks . | . . Damage Inflicted 2277 | 210 2067 Guns 1837 | 210 1627 Cannons . | . . Explosions 440 | . 440 Melee . | . . Ramming . | . . Kinetic 846 | 87 759 Thermal 1431 | 123 1308 Explosive . | . . Electromagnetic . | . . Impact . | . . Slashing . | . . Piercing . | . . Highest Corruption 1 | . 1 Average Corruption 1 | . 1 Corruption Purged . | . . Corruption Blocked . | . . Effects 2 | . 2 Matter Fused 2 | . 2 Overload Shots . | . . Overflow Damage 160 | . 160 Projectiles . | . . Explosions 160 | . 160 Melee . | . . Knockbacks . | . . Impact . | . . Kinetic . | . . Secondary . | . . Self-Inflicted Damage 165 | . 165 Shots 2 | . 2 Rammed . | . . Targets Rammed . | . . Kicked . | . . Crushed . | . . Highest Temperature 251 | 60 251 Average Temperature 45 | 23 48 Received Heat Transfer 270 | . 270 Siege Activations . | . . Robots Corrupted . | . . Combat Hostiles . | . . Parts Fried . | . . Impact Corruptions . | . . Robots Melted . | . . Combat Hostiles . | . . Parts Melted 11 | 1 10 Heat Transferred 4162 | 482 3680 Parts Sabotaged . | . . Parts Stolen . | . . Parts Stripped . | . . Power Chain Reactions . | . . Alert | -11 -10 ------- Run | Yrd Mat Peak Influence 367 | 15 367 Initial 9 | . 9 Average 80 | 5 88 Maximum Alert Level 1 | . 1 Low Security (%) 88 | 100 87 Level 1 11 | . 12 Level 2 . | . . Level 3 . | . . Level 4 . | . . Level 5 . | . . High Security . | . . Max Security . | . . Squads Dispatched 6 | . 6 Investigation 4 | . 4 Extermination . | . . Reinforcement 2 | . 2 Assault . | . . Garrison . | . . Intercept . | . . Searches Triggered . | . . Construction Impeded . | . . Haulers Reinforced . | . . Active Scanning Responses . | . . Cargo Convoy Interrupts . | . . Stealth | -11 -10 --------- Run | Yrd Mat Distress Signals 5 | . 5 Communications Jammed . | . . Distress Signals . | . . Times Spotted 32 | . 32 Peak Tracking Total 5 | . 5 Tactical Retreats 2 | . 2 Traps | -11 -10 ------- Run | Yrd Mat Traps Triggered 2 | . 2 Indirectly . | . . Trap Hack Attempts . | . . Triggered . | . . Disarmed . | . . Reprogrammed . | . . Reused . | . . Traps Extracted . | . . Installed . | . . Triggered . | . . Machines | -11 -10 ---------- Run | Yrd Mat Machines Disabled 5 | . 5 Max in Single Turn 5 | . 5 Machines Repaired . | . . Machines Dismantled . | . . Machines Sabotaged . | . . Overloaded Fab Kills . | . . Hacking | -11 -10 --------- Run | Yrd Mat Machines Accessed 8 | . 8 Terminals 8 | . 8 Fabricators . | . . Repair Stations . | . . Recycling Units . | . . Scanalyzers . | . . Garrison Access . | . . Total Hacks 28 | . 28 Successful 16 | . 16 Failed 12 | . 12 Catastrophic . | . . Database Lockouts . | . . Manual 30 | . 30 Terminals 28 | . 28 Fabricators . | . . Repair Stations . | . . Recycling Units . | . . Scanalyzers . | . . Garrison Access . | . . Terminal Hacks 3 | . 3 Robot Analysis 3 | . 3 Fabricator Hacks . | . . Repair Station Hacks . | . . Recycling Unit Hacks . | . . Scanalyzer . | . . Garrison Access Hacks . | . . Unauthorized Hacks 13 | . 13 Terminals 13 | . 13 Track 5 | . 5 Botnet 8 | . 8 Fabricators . | . . Repair Stations . | . . Recycling Units . | . . Scanalyzers . | . . Garrison Access . | . . Data Cores Recovered . | . . Used . | . . Hacking Detections 7 | . 7 Full Trace Events 2 | . 2 Feedback Events 1 | . 1 Corruption 1 | . 1 Feedback Blocked . | . . Robot Schematics Acquired . | . . Robots Built . | . . Authchips . | . . Time . | . . Total Robot Build Rating . | . . Part Schematics Acquired . | . . Parts Built . | . . Authchips . | . . Time . | . . Total Part Build Rating . | . . Parts Repaired . | . . Time . | . . Parts Recycled . | . . Recycled Matter . | . . Retrieved Matter . | . . Retrieved Components . | . . Parts Scanalyzed . | . . Part Schematics Acquired . | . . Parts Damaged . | . . Bothacking | -11 -10 ------------ Run | Yrd Mat Used RIF Installer . | . . Robots Hacked . | . . Non-combat . | . . Combat . | . . Robot Hacks Applied . | . . Relay Couplers Released . | . . Fabnet Peak Effective % . | . . Robots Rewired . | . . Allies Hacked . | . . Hacks Repelled . | . . Allies | -11 -10 -------- Run | Yrd Mat Total Allies . | . . Largest Group . | . . Highest-Rated Group . | . . Highest-Rated Ally . | . . Total Orders . | . . Ally Attacks . | . . Total Damage . | . . Kills . | . . Allies Corrupted . | . . Allies Melted . | . . Intel | -11 -10 ------- Run | Yrd Mat Robot Analysis Total 3 | . 3 Derelict Logs Recovered . | . . Drone Launches . | . . Drone Recoveries . | . . Exploration | -11 -10 ------------- Run | Yrd Mat Turns Passed 2309 | 229 2080 Spaces Moved 1117 | 113 1004 Core 2 | 2 . Treads 375 | 97 278 Legs . | . . Wheels 740 | 14 726 Hover . | . . Flight . | . . Fastest Speed 50 | 50 95 Average Speed 159 | 148 160 Slowest Speed 200 | 160 200 Overloaded Moves . | . . Propulsion Burnouts . | . . Robots Hopped . | . . Cave-ins Triggered . | . . Exploration Rate (%) 48 | 7 90 Regions Visited 1 Branch Regions . Pre-discovered Areas . | . . Known Exits Taken . | . . Unknown Exits Taken 1 | 1 . Scrap Searched . | . . Spaces Dug . | . . Terrain Destroyed 22 | . 22 Melee . | . . Projectile . | . . AOE 22 | . 22 Terrain Rammed . | . . Walls Destroyed . | . . Machines Disabled . | . . Actions | -11 -10 --------- Run | Yrd Mat Total 1421 | 145 1276 Wait 142 | . 142 Move 1116 | 112 1004 Hop . | . . Pick Up 23 | 8 15 Fast Attach 7 | 7 . Attach 2 | . 2 Detach . | . . Swap 6 | 1 5 Drop 4 | 2 2 Fire 121 | 15 106 Melee . | . . Ram . | . . Kick . | . . Crush . | . . Escape Stasis . | . . Rewire . | . . Trap . | . . Miscellaneous . | . . Route ------- -11/Scrapyard -10/Materials (discovered 4 exits: [*Mat x2] / [*Min] / [*Sub]) History --------- Turn | Location | Event 20 | -11/Scrapyard | Discovered new exit (range 15) 230 | -11/Scrapyard | Entered Materials 307 | -10/Materials | Build established: Mutant 351 | -10/Materials | Discovered new exit (range 16) 790 | -10/Materials | Discovered new exit (range 5) 1259 | -10/Materials | Discovered new exit (range 10) 1814 | -10/Materials | Core integrity fell below 50% 2188 | -10/Materials | Core integrity fell below 20% 2213 | -10/Materials | Discovered new exit (range 14) 2310 | -10/Materials | Destroyed by G-34 Mercenary with Small Laser Last Messages --------------- 02286_ U-05 Engineer builds a Wall. 02287_ U-05 Engineer lays Concrete. 02288_ K-01 Serf collects debris. 02289_ U-05 Engineer builds a Wall. 02290_ U-05 Engineer lays Concrete. 02293_ U-05 Engineer builds a Wall. 02294_ K-01 Serf collects debris. 02294_ U-05 Engineer lays Concrete. 02296_ U-05 Engineer builds a Wall. 02297_ U-05 Engineer lays Concrete. 02297_ K-01 Serf collects debris. 02298_ U-05 Engineer lays Concrete. 02303_ U-05 Engineer builds a Wall. 02303_ U-05 Engineer lays Concrete. 02303_ K-01 Serf collects debris. 02304_ U-05 Engineer lays Concrete. 02306_ K-01 Serf collects debris. 02308_ U-05 Engineer lays Concrete. 02309_ U-05 Engineer builds a Wall. 02310_ K-01 Serf collects debris. Map ----- +----------------------------------------------------+ | ???????????????????????????# """ T# | | ???????????????????????????# """ "# | | ???????????????????????????# """ # | | ???????????????????????????# # | | ???????????????????????????######## | | ?????????###########??????????????# | | ?????????# "T" #??????????????# | | ?????????# #??????????????# | | ?????????# #???????######## | | ?????????# #???????# # | | ?????????##+##+#+########??# # | | ???######## ## #??# ! / | | ???# # ;# #??# # | | ???# """ # ; #??# * # | | ???# """ + ; ##?# + | | ???# """ # # <#?######## | | ???# # u# ##?######## | | ???# # #"######## # | | ???######## # ## ![ # | | ?????????##u k # Y" ! ## ![ # | | ?????????## # """ ## # | | ?????????# # [ ## %+ | | ?????????# +####### # | | ?????????# #?????######## | | ?????????# #???????????# | | ?????????#@ #??#####????# | | ?????????#; #? ????# | | ?????????#; #? """ ???# | | ???##+#####g % # """ ???# | | ???# ^ # """ #??# | | ???# % ; #??# | | ???# k # """ =#??## | | ???# #####/#####% # """ ????# | | ???# ???? ??# #? """ ????# | | ???# ???# #% #? ?????# | | ???#????# # #??#####?????# | | ????????# # #????????????# | | ????????# # #????????????# | | ????????# # #????????????# | | ????????# # #?############ | | ????????########## #?# """ ## | | ?????????????????# #?# """ # | | ?????????????????# #?# =""" #% | | ?????????????????# ### *% % %+ | | ?????????????????# + # | | ?????????????????# ### " " % # | | ?????????????????### #?# "T" ## | | ???????????????????# #?# """ ## | | ???????????????????# #?#########+## | | ???????????????????# #?????????# | +----------------------------------------------------+ Best States ------------- Heat Dissipation 25 Energy Generation 10 Energy Capacity 250 Matter Stores 300 Matter Capacity 300 Sight Range 16 Terrain Scan Density 10 Evasion (%) 44 Recoil Reduction 1 Item Schematics ----------------- None Robot Schematics ------------------ None Fabricated ------------ Nothing Alien Tech Used ----------------- None Achievements -------------- None Challenges ------------ None Game ------ Seed CryofiberMobileCanceller Manual? 0 Play Time 00:15:18 Cumulative 90.0 hours Start 2024.04.10 @ 16:26:31 End 2024.04.10 @ 16:38:26 Sessions 1 Manual Loads 0 Difficulty Rogue Special Mode None Game No. 91 Rogue 91 Adventurer 0 Explorer 0 Win Type - Total 1 Types 1/0/0/0/0/0/0/0/0 Lore% 39 Gallery% 49 Achievement% 37 Wizard Run 0 Options --------- Layout 1 ASCII 0 Keyboard 0 Movement Numpad Keybinds 0 Fullscreen 2 Font 24/X11 Map View 50x35 Zoom Use 0% Tactical HUD 1 Map Filters NONE Filters NONE Steam 0 RUN: 19499768-c260-4187-8a77-b662ba4df4a7